[Event "13 Open de Quenza"]
[Site "Quenza, France"]
[Date "2024.07.07"]
[Round "3.12"]
[White "Podvin, Antoine"]
[Black "Yankelevich, Lev"]
[Result "0-1"]
[TimeControl "5min+3s/move"]
[WhiteElo "2056"]
[BlackElo "2416"]

1. d4 {[%clk 00:05:03]} {[%emt 00:00:01]} Nf6 {[%clk 00:05:03]} {[%emt
00:00:01]} 2. Nc3 {[%clk 00:05:03]} {[%emt 00:00:02]} d5 {[%clk 00:05:03]}
{[%emt 00:00:02]} 3. Bf4 {[%clk 00:05:03]} {[%emt 00:00:02]} a6 {[%clk
00:05:03]} {[%emt 00:00:02]} 4. e3 {[%clk 00:05:03]} {[%emt 00:00:01]} e6
{[%clk 00:04:52]} {[%emt 00:00:14]} 5. g4 {[%clk 00:04:58]} {[%emt 00:00:08]}
Bb4 {[%clk 00:04:46]} {[%emt 00:00:10]} 6. g5 {[%clk 00:04:58]} {[%emt
00:00:02]} Ne4 {[%clk 00:04:45]} {[%emt 00:00:04]} 7. Nge2 {[%clk 00:04:58]}
{[%emt 00:00:02]} Nxc3 {[%clk 00:04:31]} {[%emt 00:00:17]} 8. bxc3 {[%clk
00:04:54]} {[%emt 00:00:07]} Bd6 {[%clk 00:04:31]} {[%emt 00:00:01]} 9. h4
{[%clk 00:04:52]} {[%emt 00:00:05]} Nc6 {[%clk 00:04:31]} {[%emt 00:00:02]} 10.
Rb1 {[%clk 00:04:29]} {[%emt 00:00:25]} Na5 {[%clk 00:04:01]} {[%emt 00:00:34]}
11. Ng3 {[%clk 00:04:17]} {[%emt 00:00:15]} Qd7 {[%clk 00:03:42]} {[%emt
00:00:22]} 12. Bd3 {[%clk 00:03:51]} {[%emt 00:00:29]} Qc6 {[%clk 00:03:42]}
{[%emt 00:00:03]} 13. Nh5 {[%clk 00:03:31]} {[%emt 00:00:22]} Qxc3+ {[%clk
00:03:19]} {[%emt 00:00:27]} 14. Kf1 {[%clk 00:03:31]} {[%emt 00:00:02]} Kf8
{[%clk 00:03:18]} {[%emt 00:00:03]} 15. Qf3 {[%clk 00:03:10]} {[%emt 00:00:24]}
Nc4 {[%clk 00:03:09]} {[%emt 00:00:13]} 16. Bxc4 {[%clk 00:03:03]} {[%emt
00:00:09]} Qxc4+ {[%clk 00:03:04]} {[%emt 00:00:08]} 17. Kg2 {[%clk 00:02:39]}
{[%emt 00:00:28]} e5 {[%clk 00:02:51]} {[%emt 00:00:16]} 18. dxe5 {[%clk
00:02:14]} {[%emt 00:00:27]} Be7 {[%clk 00:02:28]} {[%emt 00:00:27]} 19. Rhd1
{[%clk 00:02:14]} {[%emt 00:00:04]} Bf5 {[%clk 00:02:28]} {[%emt 00:00:03]} 20.
Ng3 {[%clk 00:01:57]} {[%emt 00:00:19]} Be6 {[%clk 00:02:06]} {[%emt 00:00:25]}
21. Rxb7 {[%clk 00:01:51]} {[%emt 00:00:10]} Qxc2 {[%clk 00:02:02]} {[%emt
00:00:07]} 22. Rdb1 {[%clk 00:01:45]} {[%emt 00:00:09]} Rd8 {[%clk 00:01:30]}
{[%emt 00:00:36]} 23. R1b2 {[%clk 00:01:35]} {[%emt 00:00:13]} Qc4 {[%clk
00:01:26]} {[%emt 00:00:07]} 24. Rb8 {[%clk 00:01:29]} {[%emt 00:00:09]} Ke8
{[%clk 00:01:22]} {[%emt 00:00:07]} 25. Nh5 {[%clk 00:01:23]} {[%emt 00:00:08]}
Rg8 {[%clk 00:01:22]} {[%emt 00:00:02]} 26. Bg3 {[%clk 00:01:13]} {[%emt
00:00:13]} Bg4 {[%clk 00:01:15]} {[%emt 00:00:10]} 27. Qf4 {[%clk 00:00:25]}
{[%emt 00:00:51]} Bxh5 {[%clk 00:01:10]} {[%emt 00:00:08]} 28. Rxd8+ {[%clk
00:00:21]} {[%emt 00:00:07]} Bxd8 {[%clk 00:01:10]} {[%emt 00:00:02]} 29. Qf5
{[%clk 00:00:18]} {[%emt 00:00:06]} Qe4+ {[%clk 00:01:08]} {[%emt 00:00:05]} 30.
Qxe4 {[%clk 00:00:18]} {[%emt 00:00:01]} dxe4 {[%clk 00:01:08]} 31. e6 {[%clk
00:00:15]} {[%emt 00:00:06]} fxe6 {[%clk 00:01:08]} {[%emt 00:00:02]} 32. Rb8
{[%clk 00:00:14]} {[%emt 00:00:04]} Kd7 {[%clk 00:01:08]} {[%emt 00:00:01]} 33.
Ra8 {[%clk 00:00:14]} {[%emt 00:00:02]} h6 {[%clk 00:01:03]} {[%emt 00:00:07]}
34. Rxa6 {[%clk 00:00:14]} {[%emt 00:00:03]} hxg5 {[%clk 00:01:03]} {[%emt
00:00:02]} 35. hxg5 {[%clk 00:00:14]} {[%emt 00:00:01]} Bxg5 {[%clk 00:01:03]}
{[%emt 00:00:02]} 36. a4 {[%clk 00:00:14]} {[%emt 00:00:03]} Bf3+ {[%clk
00:01:03]} {[%emt 00:00:03]} 37. Kf1 {[%clk 00:00:13]} {[%emt 00:00:04]} Rh8
{[%clk 00:01:01]} {[%emt 00:00:06]} 38. Ke1 {[%clk 00:00:13]} Rh1+ {[%clk
00:00:59]} {[%emt 00:00:04]} 39. Kd2 {[%clk 00:00:13]} Rd1+ {[%clk 00:00:58]}
{[%emt 00:00:04]} 40. Kc2 {[%clk 00:00:12]} {[%emt 00:00:04]} Rd5 {[%clk
00:00:57]} {[%emt 00:00:04]} 41. Kc3 {[%clk 00:00:10]} {[%emt 00:00:06]} Bf6+
{[%clk 00:00:57]} {[%emt 00:00:01]} 42. Kc4 {[%clk 00:00:10]} {[%emt 00:00:01]}
Be2+ {[%clk 00:00:57]} {[%emt 00:00:01]} 43. Kd4 {[%emt 00:00:04]} 0-1

[Event "13 Open de Quenza"]
[Site "Quenza, France"]
[Date "2024.07.07"]
[Round "4.1"]
[White "Glek, Igor"]
[Black "Anand, Viswanathan"]
[Result "0-1"]
[TimeControl "5min+3s/move"]
[WhiteElo "2396"]
[BlackElo "2751"]

1. e4 {[%clk 00:05:03]} c5 {[%clk 00:05:03]} {[%emt 00:00:02]} 2. Nf3 {[%clk
00:05:03]} {[%emt 00:00:01]} d6 {[%clk 00:05:03]} 3. d4 {[%clk 00:05:03]}
{[%emt 00:00:02]} cxd4 {[%clk 00:05:03]} {[%emt 00:00:01]} 4. Nxd4 {[%clk
00:05:03]} {[%emt 00:00:01]} Nf6 {[%clk 00:05:03]} 5. Nc3 {[%clk 00:05:03]}
{[%emt 00:00:02]} a6 {[%clk 00:05:03]} 6. a4 {[%clk 00:05:03]} {[%emt
00:00:02]} e5 {[%clk 00:05:01]} {[%emt 00:00:05]} 7. Nf3 {[%clk 00:05:03]}
{[%emt 00:00:01]} Be7 {[%clk 00:05:01]} {[%emt 00:00:03]} 8. Bg5 {[%clk
00:05:03]} {[%emt 00:00:01]} Be6 {[%clk 00:05:01]} {[%emt 00:00:02]} 9. Bxf6
{[%clk 00:05:03]} {[%emt 00:00:02]} Bxf6 {[%clk 00:05:01]} 10. Nd5 {[%clk
00:05:03]} {[%emt 00:00:03]} Nd7 {[%clk 00:05:01]} {[%emt 00:00:01]} 11. Bc4
{[%clk 00:05:03]} {[%emt 00:00:02]} Rc8 {[%clk 00:04:59]} {[%emt 00:00:06]} 12.
Bb3 {[%clk 00:04:53]} {[%emt 00:00:13]} O-O {[%clk 00:04:54]} {[%emt 00:00:08]}
13. O-O {[%clk 00:04:44]} {[%emt 00:00:11]} Nc5 {[%clk 00:04:52]} {[%emt
00:00:05]} 14. Nxf6+ {[%clk 00:04:10]} {[%emt 00:00:37]} Qxf6 {[%clk 00:04:52]}
{[%emt 00:00:02]} 15. Bxe6 {[%clk 00:04:10]} {[%emt 00:00:02]} Qxe6 {[%clk
00:04:51]} {[%emt 00:00:03]} 16. Re1 {[%clk 00:04:06]} {[%emt 00:00:07]} Rfd8
{[%clk 00:04:45]} {[%emt 00:00:08]} 17. Qe2 {[%clk 00:03:46]} {[%emt 00:00:24]}
Qd7 {[%clk 00:04:45]} {[%emt 00:00:02]} 18. a5 {[%clk 00:03:33]} {[%emt
00:00:16]} Ne6 {[%clk 00:04:41]} {[%emt 00:00:07]} 19. g3 {[%clk 00:02:54]}
{[%emt 00:00:43]} Rc5 {[%clk 00:04:37]} {[%emt 00:00:07]} 20. Red1 {[%clk
00:01:49]} {[%emt 00:01:08]} Qc7 {[%clk 00:04:36]} {[%emt 00:00:04]} 21. c3
{[%clk 00:01:21]} {[%emt 00:00:32]} Rxa5 {[%clk 00:04:36]} {[%emt 00:00:02]} 22.
Rxa5 {[%clk 00:01:18]} {[%emt 00:00:06]} Qxa5 {[%clk 00:04:36]} {[%emt
00:00:01]} 23. Rd5 {[%clk 00:01:18]} {[%emt 00:00:02]} Qa4 {[%clk 00:04:08]}
{[%emt 00:00:32]} 24. h4 {[%clk 00:01:15]} {[%emt 00:00:05]} h6 {[%clk
00:04:08]} 25. h5 {[%clk 00:01:15]} {[%emt 00:00:03]} b5 {[%clk 00:04:03]}
{[%emt 00:00:08]} 26. Kg2 {[%clk 00:01:14]} {[%emt 00:00:03]} Qa5 {[%clk
00:03:16]} {[%emt 00:00:50]} 27. Nh4 {[%clk 00:01:12]} {[%emt 00:00:05]} Qb6
{[%clk 00:03:05]} {[%emt 00:00:14]} 28. Nf5 {[%clk 00:01:12]} {[%emt 00:00:03]}
Nc7 {[%clk 00:02:58]} {[%emt 00:00:10]} 29. Qg4 {[%clk 00:01:10]} {[%emt
00:00:04]} Ne6 {[%clk 00:02:39]} {[%emt 00:00:23]} 30. Nxh6+ {[%clk 00:01:10]}
{[%emt 00:00:02]} Kf8 {[%clk 00:02:39]} {[%emt 00:00:01]} 31. Nf5 {[%clk
00:01:08]} {[%emt 00:00:05]} b4 {[%clk 00:02:39]} {[%emt 00:00:02]} 32. h6
{[%clk 00:01:05]} {[%emt 00:00:06]} gxh6 {[%clk 00:02:39]} {[%emt 00:00:01]} 33.
Qh4 {[%clk 00:01:04]} {[%emt 00:00:04]} Rd7 {[%clk 00:02:30]} {[%emt 00:00:12]}
34. Qxh6+ {[%clk 00:00:59]} {[%emt 00:00:07]} Kg8 {[%clk 00:02:25]} {[%emt
00:00:08]} 35. Rd1 {[%clk 00:00:50]} {[%emt 00:00:12]} Qc6 {[%clk 00:02:19]}
{[%emt 00:00:09]} 36. f3 {[%clk 00:00:38]} {[%emt 00:00:15]} Qc4 {[%clk
00:02:19]} {[%emt 00:00:04]} 37. Qd2 {[%clk 00:00:10]} {[%emt 00:00:30]} bxc3
{[%clk 00:02:17]} {[%emt 00:00:05]} 38. bxc3 {[%clk 00:00:10]} Rc7 {[%clk
00:02:14]} {[%emt 00:00:06]} 39. Nxd6 {[%clk 00:00:10]} {[%emt 00:00:03]} Qxc3
{[%clk 00:02:14]} {[%emt 00:00:02]} 40. Qxc3 {[%clk 00:00:10]} {[%emt
00:00:02]} Rxc3 {[%clk 00:02:14]} {[%emt 00:00:01]} 41. Ra1 {[%clk 00:00:10]}
{[%emt 00:00:03]} Nd4 {[%clk 00:02:08]} {[%emt 00:00:08]} 42. Rxa6 {[%clk
00:00:09]} {[%emt 00:00:04]} Nxf3 {[%clk 00:02:01]} {[%emt 00:00:11]} 43. Ra8+
{[%clk 00:00:09]} {[%emt 00:00:02]} Kg7 {[%clk 00:02:01]} {[%emt 00:00:02]} 44.
Ra7 {[%clk 00:00:09]} {[%emt 00:00:01]} Ng5 {[%clk 00:02:01]} {[%emt 00:00:01]}
45. Nf5+ {[%clk 00:00:08]} {[%emt 00:00:04]} Kg6 {[%clk 00:01:59]} {[%emt
00:00:05]} 46. Ra6+ {[%clk 00:00:08]} {[%emt 00:00:02]} Ne6 {[%clk 00:01:56]}
{[%emt 00:00:06]} 47. Kf2 {[%clk 00:00:08]} {[%emt 00:00:02]} Kg5 {[%clk
00:01:54]} {[%emt 00:00:06]} 48. Ra8 {[%clk 00:00:08]} Nc5 {[%clk 00:01:50]}
{[%emt 00:00:06]} 49. Rg8+ {[%clk 00:00:08]} {[%emt 00:00:01]} Kf6 {[%clk
00:01:50]} 50. Nh6 {[%clk 00:00:07]} {[%emt 00:00:05]} Nxe4+ {[%clk 00:01:50]}
{[%emt 00:00:02]} 51. Kg2 {[%clk 00:00:07]} Rc2+ {[%clk 00:01:45]} {[%emt
00:00:09]} 52. Kh3 {[%clk 00:00:07]} {[%emt 00:00:01]} Nf2+ {[%clk 00:01:43]}
{[%emt 00:00:05]} 53. Kh4 {[%clk 00:00:07]} Rc1 {[%clk 00:01:43]} {[%emt
00:00:02]} 54. Ng4+ {[%clk 00:00:07]} {[%emt 00:00:01]} Nxg4 {[%clk 00:01:43]}
{[%emt 00:00:01]} 55. Kxg4 {[%clk 00:00:07]} Ke6 {[%clk 00:01:39]} {[%emt
00:00:07]} 56. Re8+ {[%clk 00:00:07]} {[%emt 00:00:01]} Kd5 {[%clk 00:01:39]}
57. Kf3 {[%clk 00:00:07]} {[%emt 00:00:02]} Rc3+ {[%clk 00:01:39]} {[%emt
00:00:02]} 58. Kf2 {[%clk 00:00:07]} f5 {[%clk 00:01:39]} {[%emt 00:00:01]} 59.
Ra8 {[%clk 00:00:07]} {[%emt 00:00:02]} Kd4 {[%clk 00:01:39]} {[%emt 00:00:01]}
60. Ra4+ {[%clk 00:00:07]} {[%emt 00:00:02]} Rc4 {[%clk 00:01:39]} 61. Ra5
{[%clk 00:00:07]} {[%emt 00:00:02]} Rc2+ {[%clk 00:01:39]} {[%emt 00:00:01]} 62.
Kf1 {[%emt 00:00:05]} Rb2 {[%clk 00:01:35]} {[%emt 00:00:05]} 63. Kg1 {[%clk
00:00:07]} {[%emt 00:00:03]} Ke4 {[%clk 00:01:35]} {[%emt 00:00:01]} 64. Ra3
{[%clk 00:00:07]} {[%emt 00:00:04]} Rd2 {[%clk 00:01:35]} {[%emt 00:00:01]} 65.
Ra5 {[%clk 00:00:05]} {[%emt 00:00:04]} Re2 {[%clk 00:01:34]} {[%emt 00:00:05]}
66. Kf1 {[%clk 00:00:05]} Kf3 {[%clk 00:01:34]} {[%emt 00:00:02]} 67. Ra3+
{[%clk 00:00:05]} {[%emt 00:00:02]} Re3 {[%clk 00:01:34]} {[%emt 00:00:01]} 0-1

[Event "13 Open de Quenza"]
[Site "Quenza, France"]
[Date "2024.07.07"]
[Round "4.2"]
[White "Fressinet, Laurent"]
[Black "Anwesh, Upadhyaya"]
[Result "1-0"]
[TimeControl "5min+3s/move"]
[WhiteElo "2625"]
[BlackElo "2363"]

1. d4 {[%clk 00:05:03]} d5 {[%clk 00:05:03]} {[%emt 00:00:04]} 2. Nf3 {[%clk
00:05:03]} {[%emt 00:00:02]} Nf6 {[%clk 00:05:03]} {[%emt 00:00:02]} 3. c4
{[%clk 00:05:03]} {[%emt 00:00:01]} c6 {[%clk 00:05:03]} {[%emt 00:00:01]} 4.
g3 {[%clk 00:05:03]} {[%emt 00:00:01]} Bf5 {[%clk 00:04:53]} {[%emt 00:00:13]}
5. Nc3 {[%clk 00:05:03]} {[%emt 00:00:02]} e6 {[%clk 00:04:53]} {[%emt
00:00:02]} 6. Qb3 {[%clk 00:05:03]} {[%emt 00:00:01]} Qb6 {[%clk 00:04:53]}
{[%emt 00:00:01]} 7. c5 {[%clk 00:05:03]} {[%emt 00:00:02]} Qc7 {[%clk
00:04:53]} 8. Bf4 {[%clk 00:04:57]} {[%emt 00:00:09]} Qc8 {[%clk 00:04:53]}
{[%emt 00:00:01]} 9. Nh4 {[%clk 00:04:57]} {[%emt 00:00:01]} Bg4 {[%clk
00:04:50]} {[%emt 00:00:06]} 10. f3 {[%clk 00:04:43]} {[%emt 00:00:17]} Bh5
{[%clk 00:04:50]} {[%emt 00:00:01]} 11. e4 {[%clk 00:04:37]} {[%emt 00:00:09]}
Be7 {[%clk 00:04:45]} {[%emt 00:00:08]} 12. O-O-O {[%clk 00:04:15]} {[%emt
00:00:25]} dxe4 {[%clk 00:04:32]} {[%emt 00:00:16]} 13. g4 {[%clk 00:04:15]}
{[%emt 00:00:03]} Nd5 {[%clk 00:04:11]} {[%emt 00:00:24]} 14. Bg3 {[%clk
00:03:37]} {[%emt 00:00:40]} Nxc3 {[%clk 00:03:34]} {[%emt 00:00:41]} 15. Qxc3
{[%clk 00:03:37]} {[%emt 00:00:03]} Bxh4 {[%clk 00:02:48]} {[%emt 00:00:48]} 16.
gxh5 {[%clk 00:03:21]} {[%emt 00:00:19]} Bg5+ {[%clk 00:02:42]} {[%emt
00:00:09]} 17. Kb1 {[%clk 00:03:06]} {[%emt 00:00:18]} exf3 {[%clk 00:01:38]}
{[%emt 00:01:08]} 18. d5 {[%clk 00:03:06]} Bf6 {[%clk 00:01:26]} {[%emt
00:00:14]} 19. Be5 {[%clk 00:03:04]} {[%emt 00:00:04]} Nd7 {[%clk 00:00:56]}
{[%emt 00:00:34]} 20. Bxf6 {[%clk 00:02:52]} {[%emt 00:00:15]} gxf6 {[%clk
00:00:53]} {[%emt 00:00:07]} 21. dxe6 {[%clk 00:02:12]} {[%emt 00:00:42]} fxe6
{[%clk 00:00:53]} {[%emt 00:00:02]} 22. Bh3 {[%clk 00:02:12]} {[%emt 00:00:01]}
Qc7 {[%clk 00:00:28]} {[%emt 00:00:28]} 23. Bxe6 {[%clk 00:02:04]} {[%emt
00:00:11]} O-O-O {[%clk 00:00:28]} {[%emt 00:00:02]} 24. Qxf6 {[%clk 00:02:04]}
{[%emt 00:00:03]} Rhe8 {[%clk 00:00:13]} {[%emt 00:00:19]} 25. Qf7 {[%clk
00:01:27]} {[%emt 00:00:39]} Rxe6 {[%clk 00:00:07]} {[%emt 00:00:09]} 26. Qxe6
{[%clk 00:01:27]} {[%emt 00:00:01]} Kb8 {[%clk 00:00:07]} 27. Rhf1 {[%clk
00:01:18]} {[%emt 00:00:12]} a5 {[%clk 00:00:06]} {[%emt 00:00:04]} 28. Qd6
{[%clk 00:01:00]} {[%emt 00:00:21]} Qxd6 {[%clk 00:00:05]} {[%emt 00:00:04]} 29.
Rxd6 {[%clk 00:01:00]} {[%emt 00:00:01]} Kc7 {[%clk 00:00:05]} {[%emt
00:00:02]} 30. Rxf3 {[%clk 00:01:00]} {[%emt 00:00:02]} 1-0

[Event "13 Open de Quenza"]
[Site "Quenza, France"]
[Date "2024.07.07"]
[Round "4.3"]
[White "Yankelevich, Lev"]
[Black "Bellahcene, Bilel"]
[Result "0-1"]
[TimeControl "5min+3s/move"]
[WhiteElo "2416"]
[BlackElo "2535"]

1. d4 {[%clk 00:05:03]} e6 {[%clk 00:05:03]} 2. Nf3 {[%clk 00:05:03]} {[%emt
00:00:03]} Nf6 {[%clk 00:05:03]} {[%emt 00:00:01]} 3. e3 {[%clk 00:04:56]}
{[%emt 00:00:11]} b6 {[%clk 00:05:01]} {[%emt 00:00:06]} 4. Bd3 {[%clk
00:04:56]} {[%emt 00:00:01]} Bb7 {[%clk 00:05:01]} 5. O-O {[%clk 00:04:56]}
{[%emt 00:00:02]} d5 {[%clk 00:05:01]} 6. Nbd2 {[%clk 00:04:52]} {[%emt
00:00:07]} Bd6 {[%clk 00:05:00]} {[%emt 00:00:04]} 7. b3 {[%clk 00:04:46]}
{[%emt 00:00:09]} Ne4 {[%clk 00:04:59]} {[%emt 00:00:04]} 8. Bb2 {[%clk
00:04:46]} {[%emt 00:00:04]} Nd7 {[%clk 00:04:58]} {[%emt 00:00:04]} 9. c4
{[%clk 00:04:33]} {[%emt 00:00:16]} Nxd2 {[%clk 00:04:55]} {[%emt 00:00:06]} 10.
Nxd2 {[%clk 00:04:13]} {[%emt 00:00:23]} O-O {[%clk 00:04:39]} {[%emt
00:00:18]} 11. Nf3 {[%clk 00:04:04]} {[%emt 00:00:11]} Qe7 {[%clk 00:04:35]}
{[%emt 00:00:08]} 12. Rc1 {[%clk 00:03:53]} {[%emt 00:00:14]} h6 {[%clk
00:04:17]} {[%emt 00:00:21]} 13. Qe2 {[%clk 00:03:33]} {[%emt 00:00:23]} Rad8
{[%clk 00:03:19]} {[%emt 00:01:01]} 14. Bb1 {[%clk 00:01:58]} {[%emt 00:01:38]}
dxc4 {[%clk 00:02:54]} {[%emt 00:00:28]} 15. Qxc4 {[%clk 00:01:58]} {[%emt
00:00:01]} Bxf3 {[%clk 00:02:30]} {[%emt 00:00:27]} 16. gxf3 {[%clk 00:01:58]}
{[%emt 00:00:01]} Qg5+ {[%clk 00:02:30]} {[%emt 00:00:02]} 17. Kh1 {[%clk
00:01:58]} {[%emt 00:00:02]} Qh5 {[%clk 00:02:30]} {[%emt 00:00:02]} 18. f4
{[%clk 00:01:57]} {[%emt 00:00:04]} Qf3+ {[%clk 00:02:30]} 19. Kg1 {[%clk
00:01:57]} {[%emt 00:00:02]} Nf6 {[%clk 00:02:30]} 20. Qc6 {[%clk 00:01:50]}
{[%emt 00:00:10]} Qe2 {[%clk 00:02:21]} {[%emt 00:00:11]} 21. Rc2 {[%clk
00:01:42]} {[%emt 00:00:12]} Qh5 {[%clk 00:02:21]} {[%emt 00:00:02]} 22. Qg2
{[%clk 00:01:36]} {[%emt 00:00:09]} Nd5 {[%clk 00:02:21]} {[%emt 00:00:03]} 23.
Kh1 {[%clk 00:01:29]} {[%emt 00:00:10]} f5 {[%clk 00:02:21]} 24. Rg1 {[%clk
00:01:29]} {[%emt 00:00:03]} Rd7 {[%clk 00:02:21]} 25. Rcc1 {[%clk 00:01:15]}
{[%emt 00:00:18]} g5 {[%clk 00:02:21]} {[%emt 00:00:01]} 26. fxg5 {[%clk
00:01:09]} {[%emt 00:00:09]} Rg7 {[%clk 00:02:21]} 27. f4 {[%clk 00:00:25]}
{[%emt 00:00:48]} hxg5 {[%clk 00:01:43]} {[%emt 00:00:42]} 28. Qf2 {[%clk
00:00:19]} {[%emt 00:00:09]} gxf4 {[%clk 00:01:34]} {[%emt 00:00:12]} 29. Rxg7+
Kxg7 {[%clk 00:01:34]} 30. Rg1+ {[%clk 00:00:19]} {[%emt 00:00:01]} Kf7 {[%clk
00:01:34]} {[%emt 00:00:01]} 31. e4 {[%clk 00:00:19]} {[%emt 00:00:02]} Ne3
{[%clk 00:01:23]} {[%emt 00:00:13]} 32. d5 {[%clk 00:00:19]} {[%emt 00:00:03]}
e5 {[%clk 00:01:20]} {[%emt 00:00:07]} 33. exf5 {[%clk 00:00:19]} {[%emt
00:00:02]} Rh8 {[%clk 00:01:13]} {[%emt 00:00:09]} 34. Rg6 {[%clk 00:00:19]}
{[%emt 00:00:02]} Qd1+ {[%clk 00:01:03]} {[%emt 00:00:13]} 35. Rg1 {[%clk
00:00:19]} {[%emt 00:00:01]} Qxd5+ {[%clk 00:01:03]} 36. Rg2 {[%clk 00:00:17]}
{[%emt 00:00:05]} Rg8 {[%clk 00:00:56]} {[%emt 00:00:10]} 0-1

[Event "13 Open de Quenza"]
[Site "Quenza, France"]
[Date "2024.07.07"]
[Round "4.4"]
[White "Lagarde, Maxime"]
[Black "Hejazipour, Mitra"]
[Result "1-0"]
[TimeControl "5min+3s/move"]
[WhiteElo "2608"]
[BlackElo "2333"]

1. e4 {[%clk 00:05:03]} {[%emt 00:00:02]} c5 {[%clk 00:05:03]} {[%emt
00:00:02]} 2. Nc3 {[%clk 00:05:03]} e6 {[%clk 00:05:03]} {[%emt 00:00:03]} 3.
d4 {[%clk 00:05:03]} {[%emt 00:00:02]} cxd4 {[%clk 00:05:03]} {[%emt 00:00:04]}
4. Qxd4 {[%clk 00:05:03]} Nc6 {[%clk 00:05:03]} {[%emt 00:00:02]} 5. Qe3 {[%clk
00:05:03]} d6 {[%clk 00:04:47]} {[%emt 00:00:19]} 6. b3 {[%clk 00:05:03]}
{[%emt 00:00:03]} Nf6 {[%clk 00:04:46]} {[%emt 00:00:04]} 7. Bb2 {[%clk
00:05:01]} {[%emt 00:00:05]} d5 {[%clk 00:04:16]} {[%emt 00:00:32]} 8. exd5
{[%clk 00:04:38]} {[%emt 00:00:27]} Nxd5 {[%clk 00:04:16]} 9. Nxd5 {[%clk
00:04:38]} {[%emt 00:00:02]} Qxd5 {[%clk 00:04:16]} {[%emt 00:00:01]} 10. Nf3
{[%clk 00:04:21]} {[%emt 00:00:20]} Bb4+ {[%clk 00:04:13]} {[%emt 00:00:07]} 11.
c3 {[%clk 00:04:16]} {[%emt 00:00:07]} Bc5 {[%clk 00:04:13]} {[%emt 00:00:01]}
12. Qd2 {[%clk 00:04:03]} {[%emt 00:00:17]} Qxd2+ {[%clk 00:04:05]} {[%emt
00:00:11]} 13. Nxd2 {[%clk 00:04:03]} {[%emt 00:00:01]} O-O {[%clk 00:04:03]}
{[%emt 00:00:06]} 14. Ne4 {[%clk 00:04:02]} {[%emt 00:00:03]} Be7 {[%clk
00:04:02]} {[%emt 00:00:03]} 15. Rd1 {[%clk 00:04:00]} {[%emt 00:00:05]} f5
{[%clk 00:04:01]} {[%emt 00:00:05]} 16. Nd6 {[%clk 00:03:57]} {[%emt 00:00:06]}
Bf6 {[%clk 00:03:28]} {[%emt 00:00:37]} 17. Bc4 {[%clk 00:03:46]} {[%emt
00:00:13]} Ne5 {[%clk 00:03:26]} {[%emt 00:00:04]} 18. Be2 {[%clk 00:03:43]}
{[%emt 00:00:06]} Nf7 {[%clk 00:03:23]} {[%emt 00:00:07]} 19. O-O {[%clk
00:03:01]} {[%emt 00:00:45]} Be5 {[%clk 00:02:10]} {[%emt 00:01:17]} 20. Ba3
{[%clk 00:02:53]} {[%emt 00:00:11]} Nxd6 {[%clk 00:01:46]} {[%emt 00:00:27]} 21.
Bxd6 {[%clk 00:02:53]} {[%emt 00:00:02]} Bxd6 {[%emt 00:00:02]} 22. Rxd6 {[%clk
00:02:53]} b6 {[%clk 00:01:34]} {[%emt 00:00:16]} 23. Bc4 {[%clk 00:02:29]}
{[%emt 00:00:26]} Kf7 {[%clk 00:01:34]} {[%emt 00:00:02]} 24. Rc6 {[%clk
00:02:29]} {[%emt 00:00:02]} Re8 {[%clk 00:01:25]} {[%emt 00:00:11]} 25. Rd1
{[%clk 00:02:20]} {[%emt 00:00:11]} Re7 {[%clk 00:01:17]} {[%emt 00:00:12]} 26.
f4 {[%clk 00:02:02]} {[%emt 00:00:21]} Kf6 {[%clk 00:00:58]} {[%emt 00:00:22]}
27. Rdd6 {[%clk 00:01:42]} {[%emt 00:00:23]} g5 {[%clk 00:00:39]} {[%emt
00:00:22]} 28. fxg5+ {[%clk 00:01:17]} {[%emt 00:00:28]} Kxg5 {[%clk 00:00:39]}
{[%emt 00:00:01]} 29. Bxe6 {[%clk 00:01:17]} {[%emt 00:00:01]} Bb7 {[%clk
00:00:25]} {[%emt 00:00:18]} 30. Rc4 {[%clk 00:01:17]} {[%emt 00:00:02]} Rae8
{[%clk 00:00:25]} 31. h4+ {[%clk 00:01:17]} {[%emt 00:00:01]} Kh5 {[%clk
00:00:22]} {[%emt 00:00:06]} 32. Bxf5 {[%clk 00:01:10]} {[%emt 00:00:10]} Rg7
{[%clk 00:00:20]} {[%emt 00:00:05]} 33. Rd2 {[%clk 00:00:53]} {[%emt 00:00:19]}
Reg8 {[%clk 00:00:20]} 34. Be4 {[%clk 00:00:46]} {[%emt 00:00:11]} Bxe4 35.
Rxe4 {[%clk 00:00:46]} Rg4 {[%clk 00:00:13]} {[%emt 00:00:07]} 36. Rxg4 {[%clk
00:00:46]} {[%emt 00:00:01]} Rxg4 {[%clk 00:00:12]} {[%emt 00:00:04]} 37. Rd7
{[%clk 00:00:46]} {[%emt 00:00:02]} Kxh4 {[%clk 00:00:12]} {[%emt 00:00:03]} 38.
Rxh7+ {[%clk 00:00:44]} {[%emt 00:00:05]} Kg3 {[%clk 00:00:12]} {[%emt
00:00:01]} 39. Rxa7 {[%clk 00:00:44]} {[%emt 00:00:03]} b5 {[%clk 00:00:11]}
{[%emt 00:00:04]} 40. Rd7 {[%clk 00:00:41]} {[%emt 00:00:06]} Re4 {[%clk
00:00:10]} {[%emt 00:00:04]} 41. Rd3+ {[%clk 00:00:41]} {[%emt 00:00:02]} Kf4
{[%clk 00:00:10]} {[%emt 00:00:02]} 42. Rd4 {[%clk 00:00:39]} {[%emt 00:00:04]}
1-0